bitfinex/quotes_SOLUSD_20260119
["timestamp","ask_amount","ask_price","bid_price","bid_amount"]
[1768790038559,20.70760732,133.88,133.84,7.47159455]
[1768790038560,4.34760732,133.87,133.84,11.8073141]
[1768790040858,4.34760732,133.87,133.84,4.33571955]
[1768790043263,4.34760732,133.87,133.83,10.47194495]
[1768790043264,4.34760732,133.86,133.83,11.80767822]
[1768790045156,4.34760732,133.86,133.83,7.47195867]
[1768790045873,4.34760732,133.87,133.84,4.33571955]
[1768790046373,4.34760732,133.87,133.84,7.33570583]
[1768790047076,4.34760732,133.89,133.86,4.33571955]
[1768790048973,11.81648837,133.89,133.83,4.33571955]
[1768790049157,2.99998628,133.87,133.82,14.80799126]
[1768790049362,4.34760732,133.86,133.82,14.80799126]
[1768790049664,4.28760733,133.86,133.82,11.80800498]
[1768790050070,4.22760734,133.86,133.82,11.80800498]
[1768790050271,4.22760734,133.86,133.83,4.33571955]
[1768790050665,16.36,133.87,133.83,14.807554]
[1768790050861,16.30000001,133.87,133.83,14.807554]
[1768790051266,16.30000001,133.87,133.83,11.80756772]
[1768790051467,16.30000001,133.87,133.83,14.807554]
[1768790051979,16.30000001,133.87,133.83,11.80756772]
[1768790052181,20.64760733,133.87,133.83,11.80756772]
[1768790052684,20.64760733,133.87,133.83,14.807554]
[1768790053487,16.30000001,133.87,133.84,2.99998628]
[1768790053702,16.36,133.89,133.87,4.33571955]
[1768790053868,4.34760732,133.9,133.87,7.33570583]
[1768790055382,4.34760732,133.92,133.89,2.99998628]
[1768790055566,20.70760732,133.92,133.89,2.99998628]
[1768790055881,4.34760732,133.91,133.87,4.33571955]
[1768790056089,4.34760732,133.91,133.87,2.99998628]
[1768790056586,4.34760732,133.91,133.87,10.4699063]
[1768790057288,4.34760732,133.91,133.87,14.80562585]
[1768790058372,4.34760732,133.9,133.87,7.46992002]
[1768790058768,4.34760732,133.9,133.86,10.47028408]
[1768790059278,4.34760732,133.9,133.86,7.4702978]
[1768790059878,4.34760732,133.9,133.85,14.80640391]
[1768790059879,4.34760732,133.89,133.85,14.80640391]
[1768790060370,4.34760732,133.88,133.85,14.80640391]
[1768790060685,4.34760732,133.9,133.86,7.33570583]
[1768790061261,4.34760732,133.9,133.85,11.80641763]
[1768790061566,4.34760732,133.9,133.85,14.80640391]
[1768790061766,20.70760732,133.9,133.86,14.80599826]
[1768790061967,4.34760732,133.89,133.86,14.80599826]
[1768790063484,4.34760732,133.89,133.86,4.33571955]
[1768790063665,4.34760732,133.89,133.86,7.33570583]
[1768790065678,4.34760732,133.89,133.86,4.33571955]
[1768790066790,4.39375273,133.88,133.85,7.13976031]
[1768790067092,4.39375273,133.86,133.82,4.13977403]
[1768790067280,4.39375273,133.86,133.82,14.61328398]
[1768790067477,4.39375273,133.88,133.83,7.14088567]
[1768790067683,4.39375273,133.87,133.83,7.14088567]
[1768790068594,20.75375273,133.88,133.84,14.61248942]
[1768790068897,4.39375273,133.87,133.84,14.61248942]
[1768790073698,7.46945551,133.88,133.85,4.13977403]
[1768790073699,4.39375273,133.88,133.85,4.13977403]
[1768790074999,20.75375273,133.89,133.86,4.13977403]
[1768790076701,28.22149364,133.91,133.87,4.13977403]
[1768790077002,4.39375273,133.9,133.87,4.13977403]
[1768790078506,4.39375273,133.9,133.87,11.6096395]
[1768790080088,4.39375273,133.9,133.87,4.13977403]
[1768790080491,4.20338438,133.88,133.83,4.05275953]
[1768790080700,4.20338438,133.88,133.84,4.05275953]
[1768790081016,4.20338438,133.88,133.84,11.52403473]
[1768790081313,4.20338438,133.88,133.85,11.52376012]
[1768790081490,4.20338438,133.89,133.86,11.52310441]
[1768790082012,4.20338438,133.89,133.85,11.52360039]
[1768790083081,103.1,133.92,133.88,7.05387117]
[1768790083385,4.20338438,133.91,133.88,4.05275953]
[1768790084388,4.20338438,133.91,133.88,14.52319146]
[1768790085087,4.20338438,133.91,133.88,11.52207982]
[1768790085285,4.20338438,133.91,133.88,14.52319146]
[1768790087508,4.20338438,133.91,133.88,7.05387117]
[1768790088209,4.20338438,133.91,133.88,4.05275953]
[1768790088388,4.20338438,133.91,133.88,7.05387117]
[1768790089411,4.20338438,133.91,133.88,14.52310347]
[1768790092409,4.20338438,133.91,133.88,11.52199183]
[1768790092713,4.20338438,133.91,133.88,14.52310347]
[1768790093009,4.20338438,133.91,133.88,11.52199183]
[1768790093217,4.20338438,133.91,133.88,7.4692323]
[1768790093507,4.20338438,133.91,133.88,7.4392323]
[1768790094114,4.20338438,133.91,133.88,11.80580108]
[1768790094813,4.21385284,133.9,133.87,10.47090314]
[1768790095009,4.21385284,133.9,133.87,14.83747192]
[1768790095312,4.21385284,133.9,133.87,11.83636028]
[1768790096592,4.21385284,133.9,133.87,14.83747192]
[1768790096796,4.21385284,133.9,133.88,4.36656878]
[1768790098002,7.46797436,133.91,133.88,4.36656878]
[1768790098202,28.04123784,133.92,133.88,4.36656878]
[1768790098495,4.21385284,133.91,133.88,14.83678827]
[1768790100218,4.21385284,133.93,133.9,4.36656878]
[1768790100397,4.21385284,133.93,133.9,7.33768042]
[1768790100602,4.21385284,133.93,133.9,4.33656878]
[1768790102020,4.21385284,133.92,133.88,7.46910785]
[1768790102208,4.21385284,133.92,133.88,10.47021949]
[1768790103924,4.21385284,133.91,133.87,11.83629892]
[1768790104109,4.21385284,133.91,133.87,14.83741056]
[1768790104420,4.21385284,133.91,133.87,4.36656878]
[1768790104620,4.21385284,133.89,133.85,4.36656878]
[1768790105004,4.21385284,133.88,133.84,11.83800039]
[1768790105705,4.21385284,133.87,133.83,11.83850065]
[1768790105902,4.21385284,133.86,133.83,4.36656878]
[1768790106308,4.21385284,133.86,133.83,11.83871317]
[1768790107129,4.21385284,133.86,133.81,4.36656878]
[1768790107330,4.21385284,133.85,133.81,4.36656878]
[1768790107707,4.21385284,133.85,133.82,4.36656878]
[1768790109323,4.21385284,133.85,133.81,11.83934761]
[1768790112430,4.21385284,133.85,133.81,14.84045925]
[1768790116127,4.21385284,133.86,133.83,4.36656878]
[1768790116530,4.21385284,133.86,133.83,7.36768042]
[1768790117834,4.21385284,133.86,133.83,14.83950567]
[1768790118127,16.36,133.88,133.85,4.36656878]
[1768790118333,20.57385284,133.88,133.85,4.36656878]
[1768790119233,4.21385284,133.87,133.84,4.36656878]
[1768790122528,4.21385284,133.87,133.84,11.8380892]
[1768790126131,4.38718314,133.9,133.86,4.21710787]
[1768790127338,11.85548542,133.9,133.86,11.68752125]
[1768790127539,4.38718314,133.89,133.86,11.68752125]
[1768790129642,4.38718314,133.89,133.86,14.68834224]
[1768790130348,4.38718314,133.89,133.86,11.68752125]
[1768790130535,4.38718314,133.89,133.86,14.68834224]
[1768790130846,11.85548542,133.9,133.87,4.21710787]
[1768790135956,4.38718314,133.89,133.85,7.21792886]
[1768790136631,4.38718314,133.89,133.86,4.21710787]
[1768790140265,4.38718314,133.89,133.86,11.68747006]
[1768790142158,4.38718314,133.89,133.87,4.20968984]
[1768790142966,4.38718314,133.89,133.86,11.68005203]
[1768790143145,4.33379847,133.88,133.85,4.20968984]
[1768790143339,4.33379847,133.88,133.84,14.68193235]
[1768790143848,4.33379847,133.88,133.85,11.68069018]
[1768790144044,4.33379847,133.87,133.83,11.68182794]
[1768790144242,4.33379847,133.86,133.83,11.68182794]
[1768790144947,4.33379847,133.86,133.83,4.20968984]
[1768790145335,4.33379847,133.86,133.82,11.6823319]
[1768790147045,4.33379847,133.86,133.82,14.68315289]
[1768790147362,4.33379847,133.86,133.82,11.6823319]
[1768790147548,4.33379847,133.86,133.82,14.68315289]
[1768790147749,4.33379847,133.86,133.83,4.20968984]
[1768790149763,4.33379847,133.86,133.82,11.6823319]
[1768790149952,4.33379847,133.85,133.82,4.20968984]
[1768790150464,4.33379847,133.85,133.82,11.68236356]
[1768790151663,4.33379847,133.85,133.82,4.20968984]
[1768790155667,4.33379847,133.85,133.82,11.68226816]
[1768790159670,11.80512421,133.85,133.82,4.20968984]
[1768790159977,4.33379847,133.85,133.82,4.20968984]
[1768790161177,20.56198061,133.86,133.82,4.20968984]
[1768790161474,28.03267518,133.86,133.82,11.68230989]
[1768790161676,20.56198061,133.86,133.83,4.30139409]
[1768790162188,4.20198061,133.85,133.83,4.30139409]
[1768790162583,4.20198061,133.85,133.82,11.77401414]
[1768790163655,4.20198061,133.84,133.81,7.47311582]
[1768790163886,4.20198061,133.84,133.81,11.77450991]
[1768790164054,4.20198061,133.85,133.82,11.77396701]
[1768790164250,4.20198061,133.85,133.83,4.30139409]
[1768790164679,4.20198061,133.85,133.82,11.77396701]
[1768790164981,31.03290578,133.87,133.83,4.30139409]
[1768790165279,4.20198061,133.86,133.83,4.30139409]
[1768790165775,4.20198061,133.86,133.83,11.77348246]
[1768790170383,4.20198061,133.88,133.84,4.30139409]
[1768790170684,107.30198061,133.89,133.85,4.30139409]
[1768790170981,107.30198061,133.89,133.85,7.30221508]
[1768790171185,4.20198061,133.88,133.85,7.30221508]
[1768790172086,4.20198061,133.88,133.85,14.77317358]
[1768790174985,4.20198061,133.88,133.86,4.30139409]
[1768790176071,4.20198061,133.88,133.85,14.77317358]
[1768790176271,4.20198061,133.87,133.83,7.47195418]
[1768790176594,4.20198061,133.86,133.82,4.30139409]
[1768790176786,4.20198061,133.86,133.82,11.77380099]
[1768790176988,4.20198061,133.85,133.82,11.77380099]
[1768790177571,4.20198061,133.85,133.81,7.4731568]
[1768790177572,4.20198061,133.84,133.81,7.4731568]
[1768790177777,4.20198061,133.84,133.81,11.77455089]
[1768790178289,4.20198061,133.84,133.82,7.47270902]
[1768790180790,4.20198061,133.84,133.81,11.77454269]
[1768790182688,3.70198061,133.84,133.81,11.77454269]
[1768790184365,3.70198061,133.84,133.8,10.47442023]
[1768790184676,3.70198061,133.84,133.8,11.96406632]
[1768790185477,3.70198061,133.84,133.81,11.96364386]
[1768790185887,4.30017786,133.86,133.82,3.00082099]
[1768790186099,4.30017786,133.86,133.83,4.49046708]
[1768790186984,4.30017786,133.85,133.82,7.49128807]
[1768790187487,4.30017786,133.85,133.82,4.49046708]
[1768790187685,4.30017786,133.85,133.82,11.96316606]
[1768790189580,4.30017786,133.86,133.83,4.49046708]
[1768790191073,4.30017786,133.86,133.83,11.96257322]
[1768790196979,4.30017786,133.87,133.84,4.49046708]
[1768790197182,20.66017786,133.87,133.84,4.49046708]
[1768790198292,20.66017786,133.87,133.84,11.96201338]
[1768790201202,4.30017786,133.87,133.84,11.96201338]
[1768790203709,4.30017786,133.87,133.84,4.49046708]
[1768790204005,4.21713857,133.86,133.82,11.60393143]
[1768790204313,4.21713857,133.86,133.83,11.6036559]
[1768790211092,4.21713857,133.85,133.82,11.60427691]
[1768790211494,4.21713857,133.85,133.83,4.13155493]
[1768790211692,4.21713857,133.86,133.83,4.13155493]
[1768790219328,11.68765246,133.86,133.83,4.13155493]
[1768790223611,4.37953594,133.85,133.8,4.28057573]
[1768790223816,4.37953594,133.84,133.81,4.28057573]
[1768790224817,4.37953594,133.84,133.8,4.28057573]
[1768790225029,4.37953594,133.82,133.79,4.28057573]
[1768790226416,4.37953594,133.82,133.8,4.28057573]
[1768790228936,11.85083426,133.85,133.82,4.28057573]
[1768790229143,4.37953594,133.84,133.82,4.28057573]
[1768790230910,4.37953594,133.84,133.81,4.28057573]
[1768790233212,4.37953594,133.83,133.79,7.28302471]
[1768790233417,4.37953594,133.83,133.79,4.28057573]
[1768790233831,4.37953594,133.83,133.8,4.28057573]
[1768790234039,4.37953594,133.83,133.81,4.28057573]
[1768790236438,4.31953595,133.83,133.81,4.28057573]
[1768790237235,23.83128726,133.85,133.81,11.75378447]
[1768790238519,4.37953594,133.84,133.81,11.75378447]
[1768790240641,4.31953595,133.84,133.81,11.75378447]
[1768790246743,4.37144682,133.83,133.79,11.75104535]
[1768790247044,4.37144682,133.82,133.79,11.75104535]
[1768790248522,16.36,133.82,133.78,11.75173235]
[1768790248831,4.37144682,133.81,133.78,7.47489961]
[1768790249040,4.37144682,133.81,133.77,7.4750753]
[1768790250043,4.37144682,133.81,133.77,11.75190804]
[1768790250235,4.37144682,133.82,133.79,4.27683274]
[1768790250424,20.73144682,133.81,133.79,4.27683274]
[1768790252617,20.73144682,133.81,133.78,4.27683274]
[1768790253947,4.37144682,133.8,133.77,11.75200078]
[1768790254127,4.37144682,133.8,133.78,4.27683274]
[1768790254329,20.73144682,133.81,133.78,4.27683274]
[1768790254948,20.73144682,133.81,133.78,11.7516817]
[1768790256542,20.73144682,133.81,133.78,4.27683274]
[1768790257230,16.36,133.81,133.79,4.27683274]
[1768790257834,20.73144682,133.81,133.78,11.75158673]
[1768790258040,4.37144682,133.81,133.78,11.75158673]
[1768790260052,4.12370915,133.8,133.77,11.62307543]
[1768790260250,3.004626,133.79,133.75,4.14780113]
[1768790260552,3.004626,133.77,133.74,4.34780113]
[1768790261349,3.004626,133.76,133.74,0.2]
[1768790261683,3.004626,133.76,133.73,0.2]
[1768790262035,3.004626,133.77,133.73,0.2]
[1768790262234,4.12370915,133.76,133.73,0.2]
[1768790262642,4.12370915,133.75,133.73,0.2]
[1768790267259,4.12370915,133.75,133.73,7.67771424]
[1768790267853,4.12370915,133.75,133.73,0.2]
[1768790276361,4.24987741,133.76,133.73,11.77347958]
[1768790277656,4.24987741,133.77,133.74,4.09588032]
[1768790279665,4.24987741,133.76,133.74,4.09588032]
[1768790281675,4.24987741,133.74,133.73,0.2]
[1768790281868,4.18987742,133.74,133.73,0.2]
[1768790282068,4.12987743,133.74,133.73,0.2]
[1768790282447,4.12987743,133.74,133.72,0.2]
[1768790282664,7.47617305,133.76,133.7,7.67919754]
[1768790282665,26.16636443,133.76,133.7,0.2]
[1768790282867,3.004626,133.73,133.7,0.2]
[1768790283173,3.004626,133.74,133.7,0.2]
[1768790283549,7.47775368,133.73,133.7,0.2]
[1768790283750,3.004626,133.74,133.7,11.77530933]
[1768790283951,4.24987741,133.73,133.7,4.29588032]
[1768790284457,7.25450341,133.73,133.7,4.29588032]
[1768790284659,4.18987742,133.73,133.7,4.29588032]
[1768790286846,11.72671304,133.75,133.71,4.09588032]
[1768790287252,4.24987741,133.74,133.71,4.09588032]
[1768790287474,7.25450341,133.74,133.71,4.09588032]
[1768790288572,14.7317139,133.74,133.71,4.09588032]
[1768790289371,7.25450341,133.73,133.7,4.29588032]
[1768790290075,4.24987741,133.73,133.7,4.29588032]
[1768790291583,14.73124652,133.75,133.71,4.09588032]
[1768790291880,4.24987741,133.73,133.71,4.09588032]
[1768790292085,4.18987742,133.73,133.71,4.09588032]
[1768790294671,4.18987742,133.73,133.7,4.29588032]
[1768790296277,4.12987743,133.73,133.7,4.29588032]
[1768790296691,10.4815029,133.75,133.71,4.09588032]
[1768790298175,7.4768769,133.75,133.71,4.09588032]
[1768790298377,11.72675431,133.75,133.71,4.09588032]
[1768790299389,4.24987741,133.75,133.71,7.47853615]
[1768790299567,4.24987741,133.75,133.72,4.09588032]
[1768790299771,117.83080075,133.76,133.72,4.09588032]
[1768790300073,114.82617475,133.76,133.72,11.57410564]
[1768790300984,103.1,133.76,133.73,4.09588032]
[1768790302994,114.82359765,133.76,133.73,4.09588032]
[1768790304790,11.72359765,133.76,133.73,4.09588032]
[1768790305471,14.72822365,133.76,133.73,4.09588032]
[1768790305794,11.72359765,133.76,133.73,4.09588032]
[1768790306082,14.72822365,133.76,133.73,4.09588032]
[1768790306786,11.72359765,133.76,133.73,4.09588032]
[1768790308387,14.72822365,133.76,133.73,4.09588032]
[1768790308795,11.72359765,133.76,133.73,4.09588032]
[1768790308987,4.24738901,133.75,133.72,4.33556646]
[1768790309491,4.24738901,133.75,133.71,4.33556646]
[1768790310595,4.24738901,133.75,133.72,4.33556646]
[1768790311695,11.72403317,133.75,133.72,4.33556646]
[1768790313092,4.24738901,133.75,133.72,4.33556646]
[1768790313289,11.72310328,133.77,133.73,4.33556646]
[1768790314773,11.72349789,133.76,133.73,4.33556646]
[1768790316597,11.6634979,133.76,133.73,4.33556646]
[1768790317000,7.47551767,133.77,133.73,4.33556646]
[1768790318493,11.90475491,133.77,133.73,4.33556646]
[1768790320277,7.47551767,133.77,133.73,4.33556646]
[1768790320473,4.42923724,133.76,133.73,4.33556646]
[1768790321731,4.42923724,133.75,133.72,4.32009045]
[1768790321899,4.42923724,133.74,133.7,16.58]
[1768790322076,7.43682473,133.73,133.7,20.90009045]
[1768790322277,7.43682473,133.73,133.7,4.52009045]
[1768790322781,4.42923724,133.73,133.7,4.52009045]
[1768790322982,4.36923725,133.73,133.7,4.52009045]
[1768790324399,4.25922975,133.73,133.7,4.52009045]
[1768790324982,4.19922976,133.73,133.7,4.52009045]
[1768790326701,4.19922976,133.73,133.71,4.32009045]
[1768790326999,11.90686134,133.74,133.71,4.32009045]
[1768790327996,4.42923724,133.76,133.72,4.32009045]
[1768790328700,11.90500015,133.77,133.73,4.32009045]
[1768790332901,4.3887946,133.76,133.73,4.32009045]
[1768790334086,4.3887946,133.79,133.74,7.26514882]
[1768790334295,4.3887946,133.79,133.75,4.25756133]
[1768790334494,4.3887946,133.79,133.76,4.25756133]
[1768790334700,11.86287306,133.8,133.76,4.25756133]
[1768790335490,4.3887946,133.79,133.76,4.25756133]
[1768790336295,11.86325113,133.79,133.76,4.25756133]
[1768790336694,4.3887946,133.8,133.77,4.25756133]
[1768790337407,4.3887946,133.8,133.76,4.25756133]
[1768790337995,4.3887946,133.79,133.76,4.25756133]
[1768790339289,11.86299646,133.8,133.77,4.25756133]
[1768790339708,4.3887946,133.79,133.76,4.25756133]
[1768790340402,11.86332139,133.79,133.76,4.25756133]
[1768790341489,4.3887946,133.78,133.75,11.73398924]
[1768790341686,4.3887946,133.77,133.74,4.25756133]
[1768790344908,7.47451403,133.79,133.75,4.25756133]
[1768790345287,7.47451403,133.79,133.76,4.25756133]
[1768790346015,4.3887946,133.79,133.76,4.25756133]
[1768790348309,11.86263615,133.8,133.76,4.25756133]
[1768790348496,4.3887946,133.8,133.77,4.25756133]
[1768790353113,4.3887946,133.82,133.79,4.25756133]
[1768790353312,11.86155478,133.82,133.79,4.25756133]
[1768790353515,4.3887946,133.81,133.78,4.25756133]
[1768790354818,4.3887946,133.81,133.78,4.22756133]
[1768790356121,7.47276018,133.82,133.78,4.22756133]
[1768790356418,4.3887946,133.82,133.78,10.48228967]
[1768790356822,4.3887946,133.82,133.79,4.25756133]
[1768790357403,7.47229284,133.83,133.8,4.25756133]
[1768790357723,7.47229284,133.83,133.81,4.25756133]
[1768790358095,107.4887946,133.86,133.82,4.25756133]
[1768790358305,103.1,133.86,133.84,4.25756133]
[1768790358606,103.1,133.86,133.84,3.77388461]
[1768790358801,103.1,133.86,133.84,3.28906885]
[1768790359133,103.1,133.86,133.84,2.3800393]
[1768790359306,107.4887946,133.86,133.82,3.00758749]
[1768790359505,107.4887946,133.86,133.83,3.00758749]
[1768790361310,107.4887946,133.86,133.83,7.26514882]
[1768790363827,4.17098689,133.88,133.85,5.2e-07]
[1768790364014,4.17098689,133.88,133.84,3.00758828]
[1768790364823,4.17098689,133.88,133.84,10.47880416]
[1768790369441,4.07098689,133.87,133.84,3.00758828]
[1768790370042,4.07098689,133.87,133.84,7.9e-07]
[1768790374342,4.07098689,133.86,133.83,1.91241199]
[1768790374549,4.07098689,133.86,133.82,28.74656142]
[1768790374845,4.07098689,133.86,133.83,7.47209471]
[1768790377537,4.07098689,133.86,133.83,10.47388301]
[1768790381237,4.07098689,133.86,133.83,7.47209471]
[1768790381426,4.07098689,133.86,133.83,10.47388301]
[1768790381633,4.07098689,133.86,133.83,7.47209471]
[1768790384653,4.48854594,133.85,133.82,12.38673867]
[1768790384860,4.48854594,133.85,133.82,7.47253838]
[1768790386452,4.48854594,133.85,133.81,25.74550019]
[1768790387339,4.48854594,133.84,133.8,10.47544394]
[1768790387656,4.48854594,133.84,133.8,28.74785593]
[1768790388037,4.48854594,133.84,133.8,23.83365564]
[1768790388237,4.48854594,133.84,133.8,26.83544394]
[1768790388643,4.48854594,133.84,133.8,28.74785593]
[1768790392361,4.48854594,133.84,133.8,25.74606763]
[1768790392659,4.48854594,133.84,133.8,28.74785593]
[1768790394769,4.43690866,133.86,133.82,4.91420029]
[1768790395758,4.43690866,133.86,133.82,12.38665221]
[1768790396794,4.43690866,133.86,133.83,1.91241199]
[1768790397749,11.90751178,133.86,133.83,18.27241199]
[1768790399270,4.43690866,133.85,133.83,18.27241199]
[1768790400370,4.43690866,133.86,133.83,18.27241199]
[1768790400748,11.90746979,133.86,133.83,18.27241199]
[1768790401171,4.43690866,133.85,133.83,16.36]
[1768790402272,4.43690866,133.85,133.83,18.27241199]
[1768790402474,11.90746979,133.86,133.83,18.27241199]
[1768790402969,21.77574683,133.88,133.83,18.27241199]
[1768790402970,0.1,133.88,133.85,1.91241199]
[1768790403189,4.53690866,133.88,133.85,1.91241199]
[1768790404374,4.53690866,133.88,133.85,12.38498172]
[1768790404565,0.1,133.88,133.86,1.91241199]
[1768790404872,0.1,133.88,133.86,4.91420029]
[1768790405261,0.1,133.88,133.86,1.91241199]
[1768790408276,0.1,133.88,133.87,1.91241199]
[1768790408458,4.53690866,133.9,133.87,4.81420029]
[1768790408858,4.53690866,133.9,133.87,1.81241199]
[1768790409053,12.00518152,133.9,133.87,1.81241199]
[1768790410478,4.53690866,133.9,133.87,1.81241199]
[1768790410976,4.43690866,133.89,133.86,21.17420029]
[1768790411278,4.43690866,133.89,133.86,16.36]
[1768790411468,4.43690866,133.89,133.86,25.64288758]
[1768790412178,4.43690866,133.89,133.86,28.64467588]
[1768790414284,4.43690866,133.89,133.86,18.17241199]
[1768790414460,4.43690866,133.88,133.84,9.28380367]
[1768790414667,4.43690866,133.88,133.85,16.36]
[1768790415066,4.43690866,133.88,133.85,28.64492254]
[1768790415267,4.43690866,133.89,133.86,1.81241199]
[1768790415983,4.43690866,133.89,133.86,4.81420029]
[1768790416184,4.43690866,133.89,133.86,1.81241199]
[1768790417183,4.43690866,133.89,133.86,9.28278285]
[1768790417367,0.1,133.9,133.87,1.81241199]
[1768790418185,4.53690866,133.9,133.87,1.81241199]
[1768790418380,12.00530443,133.9,133.87,1.81241199]
[1768790418578,4.43690866,133.89,133.86,1.81241199]
[1768790418881,4.43690866,133.89,133.86,18.17241199]
[1768790419089,4.43690866,133.89,133.86,1.81241199]
[1768790419578,4.43690866,133.89,133.86,9.28280348]
[1768790419967,4.43690866,133.89,133.86,25.64280348]
[1768790421885,4.43690866,133.88,133.86,16.36]
[1768790426089,11.9063238,133.88,133.84,12.28572118]
[1768790426295,4.10957509,133.87,133.84,25.64393288]
[1768790427691,4.10957509,133.85,133.82,9.28513654]
[1768790427882,4.10957509,133.85,133.82,25.64513654]
[1768790430281,4.10957509,133.85,133.82,16.36]
[1768790431397,4.10957509,133.85,133.82,23.83272063]
[1768790432793,4.10957509,133.85,133.82,7.47272063]
[1768790434397,4.10957509,133.85,133.82,9.28513262]
[1768790440908,4.46324925,133.89,133.84,4.8152052]
[1768790441112,4.46324925,133.89,133.85,21.1752052]
[1768790441604,4.46324925,133.89,133.86,4.8152052]
[1768790441835,4.46324925,133.89,133.86,1.81241199]
[1768790442596,4.46324925,133.89,133.86,4.8152052]
[1768790443692,0.1,133.9,133.88,1.81241199]
[1768790443897,4.46324925,133.93,133.88,21.11520522]
[1768790444217,4.46324925,133.92,133.88,18.11241201]
[1768790445297,4.46324925,133.91,133.88,21.11520522]
[1768790446019,4.46324925,133.91,133.88,28.58453015]
[1768790446319,4.46324925,133.91,133.88,25.58173694]
[1768790446698,4.46324925,133.91,133.88,28.58453015]
[1768790451097,4.46324925,133.91,133.88,19.36279321]
[1768790451302,4.46324925,133.91,133.88,16.36]
[1768790452821,4.31627749,133.9,133.86,7.47038557]
[1768790453022,4.31627749,133.9,133.87,7.46984301]
[1768790453224,4.31627749,133.9,133.87,9.22225502]
[1768790453413,4.31627749,133.9,133.87,12.22504823]
[1768790453719,7.46732535,133.92,133.88,7.46934186]
[1768790453925,4.31627749,133.91,133.88,7.46934186]
[1768790454921,4.31627749,133.91,133.88,9.22175387]
[1768790455426,4.31627749,133.91,133.88,12.22454708]
[1768790455815,4.31627749,133.91,133.88,9.22175387]
[1768790456424,4.31627749,133.91,133.88,12.22454708]
[1768790457229,4.31627749,133.91,133.88,9.22175387]
[1768790457430,4.31627749,133.91,133.88,7.46934186]
[1768790460028,4.31627749,133.91,133.88,9.22175387]
[1768790460436,4.31627749,133.91,133.88,12.22454708]
[1768790462733,4.31627749,133.91,133.88,9.22175387]
[1768790462921,4.31627749,133.91,133.88,12.22454708]
[1768790468242,4.31627749,133.91,133.87,30.89938159]
[1768790468640,4.31627749,133.91,133.88,1.75241201]
[1768790470139,4.31627749,133.91,133.88,9.22129819]
[1768790473844,4.31627749,133.91,133.87,9.22214996]
[1768790474035,4.31627749,133.9,133.87,23.82973795]
[1768790474545,4.31627749,133.9,133.87,28.58494317]
[1768790474926,4.31627749,133.9,133.85,4.75520522]
[1768790475129,4.31627749,133.9,133.85,28.58593572]
[1768790475533,11.78459889,133.9,133.85,28.58593572]
[1768790475737,4.31627749,133.89,133.85,28.58593572]
[1768790475943,4.31627749,133.89,133.86,4.75520522]
[1768790476249,4.31627749,133.89,133.87,3.00279321]
[1768790476431,4.31627749,133.89,133.86,4.75520522]
[1768790477740,4.31627749,133.89,133.86,12.22540274]
[1768790480328,4.31627749,133.89,133.86,7.47019752]
[1768790480649,4.31627749,133.89,133.86,10.47299073]
[1768790481152,4.31627749,133.89,133.86,12.22540274]
[1768790481450,4.31627749,133.9,133.86,12.22540274]
[1768790482152,4.31627749,133.9,133.87,9.22218052]
[1768790482451,4.31627749,133.9,133.87,12.22497373]
[1768790482954,4.31627749,133.9,133.87,9.22218052]
[1768790483134,4.31627749,133.9,133.87,12.22497373]
[1768790484154,4.31627749,133.9,133.87,9.22218052]
[1768790484742,4.31627749,133.9,133.87,12.22497373]
[1768790486346,4.07244797,133.91,133.88,1.75241201]
[1768790486657,4.07244797,133.91,133.87,12.22497373]
[1768790486844,4.07244797,133.91,133.88,1.75241201]
[1768790487052,4.07244797,133.91,133.88,21.11520522]
[1768790488139,4.07244797,133.91,133.88,28.58448631]
[1768790492867,4.07244797,133.91,133.88,25.5816931]
[1768790493044,4.07244797,133.91,133.88,28.58102141]
[1768790494869,4.07244797,133.91,133.88,18.11241201]
[1768790495365,4.07244797,133.9,133.86,12.22203377]
[1768790495668,4.07244797,133.9,133.86,28.58203377]
[1768790496252,4.07244797,133.9,133.87,7.46988947]
[1768790496462,4.07244797,133.9,133.88,7.46935924]
[1768790496664,4.07244797,133.91,133.88,12.22109956]
[1768790496969,4.07244797,133.92,133.88,12.22109956]
[1768790497869,4.07244797,133.91,133.88,12.22109956]
[1768790498770,4.07244797,133.91,133.88,7.46935924]
[1768790500271,4.07244797,133.91,133.88,9.22177125]
[1768790500850,4.07244797,133.91,133.88,7.46935924]
[1768790501473,4.07244797,133.91,133.88,9.22177125]
[1768790502982,4.49729593,133.94,133.91,1.75241201]
[1768790503154,4.49729593,133.94,133.89,19.35932831]
[1768790503469,4.49729593,133.94,133.9,2.99932831]
[1768790504270,4.49729593,133.94,133.89,19.35932831]
[1768790505076,4.39729593,133.93,133.9,7.46825989]
[1768790505372,4.39729593,133.93,133.88,28.55074597]
[1768790505873,10.56538925,133.94,133.88,23.82900561]
[1768790505874,4.39729593,133.92,133.88,23.82900561]
[1768790506454,4.39729593,133.91,133.87,28.551494]
[1768790506673,4.39729593,133.91,133.87,26.82908195]
[1768790506882,4.39729593,133.9,133.86,12.19205737]
[1768790507068,4.39729593,133.9,133.86,28.55205737]
[1768790508071,4.39729593,133.89,133.86,25.55272906]